[Event "Titled Tuesday Blitz November 22 Early 2022"]
[White "Farmani Anosheh, Armin"]
[Black "Artemenko, Oleg"]
[WhiteFideId "24613240"]
[BlackFideId "14201798"]
[WhiteElo "2289"]
[BlackElo "2287"]
[Result "0-1"]
[Round "01"]
[TimeControl "180+1"]
[Date "2022.11.23"]
[WhiteClock "0:00:30"]
[BlackClock "0:00:21"]

1. d4 {[%clk 0:03:00]}  e6 {[%clk 0:02:59]} 2. c4 {[%clk 0:03:01]}  Nf6 {[%clk 0:02:58]} 3. Nf3 {[%clk 0:03:01]}  b6 {[%clk 0:02:58]} 4. g3 {[%clk 0:03:02]}  Bb7 {[%clk 0:02:59]} 5. Bg2 {[%clk 0:03:02]}  Bb4+ {[%clk 0:02:59]} 6. Bd2 {[%clk 0:03:01]}  Be7 {[%clk 0:02:59]} 7. O-O {[%clk 0:02:56]}  c6 {[%clk 0:02:56]} 8. Nc3 {[%clk 0:02:54]}  d5 {[%clk 0:02:56]} 9. Ne5 {[%clk 0:02:54]}  Nbd7 {[%clk 0:02:55]} 10. Nxd7 {[%clk 0:02:12]}  Qxd7 {[%clk 0:02:51]} 11. cxd5 {[%clk 0:02:13]}  cxd5 {[%clk 0:02:51]} 12. Bf4 {[%clk 0:02:10]}  O-O {[%clk 0:02:50]} 13. Rc1 {[%clk 0:02:11]}  Rac8 {[%clk 0:02:48]} 14. Qd3 {[%clk 0:02:08]}  Rc6 {[%clk 0:02:40]} 15. Nb5 {[%clk 0:02:04]}  Rxc1 {[%clk 0:02:21]} 16. Rxc1 {[%clk 0:02:03]}  Ba6 {[%clk 0:02:17]} 17. Rc7 {[%clk 0:01:42]}  Qxb5 {[%clk 0:02:10]} 18. Qxb5 {[%clk 0:01:41]}  Bxb5 {[%clk 0:02:11]} 19. Rxe7 {[%clk 0:01:42]}  Ra8 {[%clk 0:02:04]} 20. Bf3 {[%clk 0:01:38]}  Bd7 {[%clk 0:01:59]} 21. Be5 {[%clk 0:01:25]}  Rd8 {[%clk 0:01:44]} 22. Bxf6 {[%clk 0:01:26]}  gxf6 {[%clk 0:01:44]} 23. Bh5 {[%clk 0:01:26]}  Be8 {[%clk 0:01:40]} 24. Rxa7 {[%clk 0:01:26]}  Rc8 {[%clk 0:01:40]} 25. Kg2 {[%clk 0:01:25]}  e5 {[%clk 0:01:36]} 26. e3 {[%clk 0:01:21]}  Rc2 {[%clk 0:01:28]} 27. dxe5 {[%clk 0:01:17]}  fxe5 {[%clk 0:01:26]} 28. Re7 {[%clk 0:01:16]}  Bc6 {[%clk 0:01:24]} 29. Bf3 {[%clk 0:01:11]}  d4 {[%clk 0:01:04]} 30. Bxc6 {[%clk 0:01:10]}  dxe3 {[%clk 0:01:03]} 31. Bb5 {[%clk 0:01:05]}  Rxf2+ {[%clk 0:00:55]} 32. Kg1 {[%clk 0:01:04]}  f6 {[%clk 0:00:55]} 33. Bc4+ {[%clk 0:00:55]}  Kh8 {[%clk 0:00:55]} 34. Re8+ {[%clk 0:00:48]}  Kg7 {[%clk 0:00:54]} 35. Rd8 {[%clk 0:00:38]}  Rxb2 {[%clk 0:00:50]} 36. a4 {[%clk 0:00:39]}  f5 {[%clk 0:00:29]} 37. Rd3 {[%clk 0:00:36]}  f4 {[%clk 0:00:26]} 38. gxf4 {[%clk 0:00:34]}  exf4 {[%clk 0:00:27]} 39. Rd4 {[%clk 0:00:35]}  f3 {[%clk 0:00:23]} 40. Rf4 {[%clk 0:00:31]}  Rb1+ {[%clk 0:00:20]} 41. Bf1 {[%clk 0:00:30]}  e2 {[%clk 0:00:21]} 0-1


[Site "https://www.chess.com"]

[Event "Titled Tuesday Blitz November 22 Early 2022"]
[White "Fedoseev, Vladimir"]
[Black "Winterberg, Lukas"]
[WhiteFideId "24130737"]
[BlackFideId "24622702"]
[WhiteElo "2726"]
[BlackElo "2349"]
[Result "1-0"]
[Round "01"]
[TimeControl "180+1"]
[Date "2022.11.22"]
[WhiteClock "0:00:13"]
[BlackClock "0:00:58"]

1. e4 {[%clk 0:02:53]}  e6 {[%clk 0:02:58]} 2. d4 {[%clk 0:02:51]}  d5 {[%clk 0:02:59]} 3. Nd2 {[%clk 0:02:52]}  c5 {[%clk 0:02:58]} 4. Ngf3 {[%clk 0:02:51]}  cxd4 {[%clk 0:02:58]} 5. Nxd4 {[%clk 0:02:51]}  Nf6 {[%clk 0:02:59]} 6. exd5 {[%clk 0:02:51]}  Nxd5 {[%clk 0:03:00]} 7. N2f3 {[%clk 0:02:51]}  Bb4+ {[%clk 0:03:00]} 8. c3 {[%clk 0:02:51]}  Nxc3 {[%clk 0:02:59]} 9. bxc3 {[%clk 0:02:35]}  Bxc3+ {[%clk 0:03:00]} 10. Bd2 {[%clk 0:02:35]}  Bxd4 {[%clk 0:03:00]} 11. Bb5+ {[%clk 0:01:55]}  Nc6 {[%clk 0:02:59]} 12. Rc1 {[%clk 0:01:51]}  O-O {[%clk 0:02:57]} 13. O-O {[%clk 0:01:33]}  Bf6 {[%clk 0:02:57]} 14. Bf4 {[%clk 0:01:24]}  Qb6 {[%clk 0:02:38]} 15. Qa4 {[%clk 0:00:55]}  Bd7 {[%clk 0:02:29]} 16. Rfd1 {[%clk 0:00:55]}  Rfd8 {[%clk 0:02:29]} 17. Rb1 {[%clk 0:00:49]}  Be8 {[%clk 0:02:20]} 18. Bd3 {[%clk 0:00:37]}  Qa5 {[%clk 0:01:41]} 19. Qe4 {[%clk 0:00:23]}  g6 {[%clk 0:01:33]} 20. Rxb7 {[%clk 0:00:21]}  Qd5 {[%clk 0:01:23]} 21. Rbb1 {[%clk 0:00:12]}  Rac8 {[%clk 0:01:11]} 22. Qxd5 {[%clk 0:00:10]}  Rxd5 {[%clk 0:01:12]} 23. Ba6 {[%clk 0:00:10]}  Rxd1+ {[%clk 0:01:07]} 24. Rxd1 {[%clk 0:00:11]}  Rd8 {[%clk 0:01:07]} 25. Rb1 {[%clk 0:00:11]}  Nd4 {[%clk 0:01:04]} 26. Be3 {[%clk 0:00:12]}  Nxf3+ {[%clk 0:01:04]} 27. gxf3 {[%clk 0:00:13]}  Bd4 {[%clk 0:01:04]} 28. Bxd4 {[%clk 0:00:13]}  Rxd4 {[%clk 0:01:04]} 29. Rb8 {[%clk 0:00:13]}  Kf8 {[%clk 0:01:00]} 30. Bb5 {[%clk 0:00:13]}  Rb4 {[%clk 0:00:56]} 31. Rxe8+ {[%clk 0:00:13]}  Kg7 {[%clk 0:00:57]} 32. a4 {[%clk 0:00:12]}  a6 {[%clk 0:00:57]} 33. Bxa6 {[%clk 0:00:10]}  Rxa4 {[%clk 0:00:57]} 34. Bf1 {[%clk 0:00:10]}  Rf4 {[%clk 0:00:57]} 35. Kg2 {[%clk 0:00:11]}  h5 {[%clk 0:00:58]} 36. h3 {[%clk 0:00:11]}  Rf5 {[%clk 0:00:59]} 37. Rd8 {[%clk 0:00:11]}  Rg5+ {[%clk 0:00:59]} 38. Kh2 {[%clk 0:00:12]}  Rc5 {[%clk 0:01:00]} 39. Rd3 {[%clk 0:00:11]}  Kf6 {[%clk 0:01:01]} 40. Kg3 {[%clk 0:00:12]}  Kg7 {[%clk 0:01:02]} 41. f4 {[%clk 0:00:12]}  Kf6 {[%clk 0:01:03]} 42. Bg2 {[%clk 0:00:12]}  Rc1 {[%clk 0:01:03]} 43. Bf3 {[%clk 0:00:12]}  Kg7 {[%clk 0:01:04]} 44. Kh2 {[%clk 0:00:12]}  Kf6 {[%clk 0:01:04]} 45. Kg3 {[%clk 0:00:13]}  Kf5 {[%clk 0:01:05]} 46. Re3 {[%clk 0:00:12]}  h4+ {[%clk 0:01:04]} 47. Kg2 {[%clk 0:00:10]}  Kxf4 {[%clk 0:01:05]} 48. Re4+ {[%clk 0:00:10]}  Kg5 {[%clk 0:01:05]} 49. Rg4+ {[%clk 0:00:11]}  Kf5 {[%clk 0:01:04]} 50. Rxh4 {[%clk 0:00:12]}  Ra1 {[%clk 0:01:05]} 51. Rh7 {[%clk 0:00:11]}  f6 {[%clk 0:01:05]} 52. h4 {[%clk 0:00:11]}  e5 {[%clk 0:01:04]} 53. Bd5 {[%clk 0:00:11]}  Rd1 {[%clk 0:01:03]} 54. Bc6 {[%clk 0:00:11]}  Rd6 {[%clk 0:01:01]} 55. Be8 {[%clk 0:00:11]}  Rd8 {[%clk 0:01:00]} 56. Bf7 {[%clk 0:00:09]}  g5 {[%clk 0:00:58]} 57. h5 {[%clk 0:00:09]}  g4 {[%clk 0:00:59]} 58. Rg7 {[%clk 0:00:09]}  Rh8 {[%clk 0:00:58]} 59. Kg3 {[%clk 0:00:09]}  Rh6 {[%clk 0:00:56]} 60. Rxg4 {[%clk 0:00:09]}  e4 {[%clk 0:00:57]} 61. Bg6+ {[%clk 0:00:09]}  Ke5 {[%clk 0:00:57]} 62. Rxe4+ {[%clk 0:00:10]}  Kd6 {[%clk 0:00:57]} 63. Rf4 {[%clk 0:00:11]}  Ke5 {[%clk 0:00:57]} 64. Kg4 {[%clk 0:00:11]}  Rh8 {[%clk 0:00:58]} 65. Re4+ {[%clk 0:00:11]}  Kd6 {[%clk 0:00:58]} 66. Kf5 {[%clk 0:00:12]}  Kd5 {[%clk 0:00:57]} 67. f4 {[%clk 0:00:13]}  Rb8 {[%clk 0:00:57]} 68. Kxf6 {[%clk 0:00:13]}  Rb2 {[%clk 0:00:58]} 69. h6 {[%clk 0:00:12]}  Rh2 {[%clk 0:00:59]} 70. h7 {[%clk 0:00:13]}  Kd6 {[%clk 0:00:58]} 71. Re5 {[%clk 0:00:13]} 1-0


[Site "https://www.chess.com"]

[Event "Titled Tuesday Blitz November 22 Early 2022"]
[White "Ferreira, Vitor Hugo Vieira"]
[Black "Keymer, Vincent"]
[WhiteFideId "2119765"]
[BlackFideId "12940690"]
[WhiteElo "2168"]
[BlackElo "2600"]
[Result "0-1"]
[Round "01"]
[TimeControl "180+1"]
[Date "2022.11.22"]
[WhiteClock "0:00:59"]
[BlackClock "0:01:55"]

1. Nf3 {[%clk 0:02:58]}  d5 {[%clk 0:02:59]} 2. g3 {[%clk 0:02:56]}  Bg4 {[%clk 0:02:58]} 3. Bg2 {[%clk 0:02:56]}  c6 {[%clk 0:02:58]} 4. O-O {[%clk 0:02:56]}  Nd7 {[%clk 0:02:58]} 5. c4 {[%clk 0:02:56]}  Bxf3 {[%clk 0:02:58]} 6. Bxf3 {[%clk 0:02:53]}  Ne5 {[%clk 0:02:59]} 7. cxd5 {[%clk 0:02:48]}  Nxf3+ {[%clk 0:02:58]} 8. exf3 {[%clk 0:02:48]}  cxd5 {[%clk 0:02:59]} 9. d3 {[%clk 0:02:46]}  e6 {[%clk 0:03:00]} 10. f4 {[%clk 0:02:46]}  Bd6 {[%clk 0:02:56]} 11. f5 {[%clk 0:02:46]}  exf5 {[%clk 0:02:54]} 12. Qf3 {[%clk 0:02:46]}  Ne7 {[%clk 0:02:54]} 13. Nc3 {[%clk 0:02:45]}  Bb4 {[%clk 0:02:43]} 14. Bg5 {[%clk 0:02:38]}  f6 {[%clk 0:02:42]} 15. Bf4 {[%clk 0:02:19]}  Bxc3 {[%clk 0:02:28]} 16. bxc3 {[%clk 0:02:18]}  O-O {[%clk 0:02:29]} 17. Rab1 {[%clk 0:02:16]}  Qd7 {[%clk 0:02:29]} 18. Rb3 {[%clk 0:02:10]}  Rac8 {[%clk 0:02:26]} 19. Rfb1 {[%clk 0:02:10]}  b6 {[%clk 0:02:27]} 20. h4 {[%clk 0:02:08]}  Ng6 {[%clk 0:02:19]} 21. Bd2 {[%clk 0:02:08]}  Ne5 {[%clk 0:02:14]} 22. Qe2 {[%clk 0:01:51]}  Rfe8 {[%clk 0:02:14]} 23. Be3 {[%clk 0:01:49]}  Ng4 {[%clk 0:02:12]} 24. Qf3 {[%clk 0:01:44]}  Nxe3 {[%clk 0:02:08]} 25. fxe3 {[%clk 0:01:44]}  Re5 {[%clk 0:02:08]} 26. Re1 {[%clk 0:01:35]}  Rce8 {[%clk 0:02:05]} 27. Rb2 {[%clk 0:01:22]}  g6 {[%clk 0:02:02]} 28. h5 {[%clk 0:01:15]}  Qc7 {[%clk 0:01:58]} 29. hxg6 {[%clk 0:01:11]}  hxg6 {[%clk 0:01:59]} 30. Rb5 {[%clk 0:01:05]}  Qxc3 {[%clk 0:01:57]} 31. Kg2 {[%clk 0:00:59]}  Qxe1 {[%clk 0:01:55]} 0-1


[Site "https://www.chess.com"]

[Event "Titled Tuesday Blitz November 22 Early 2022"]
[White "Garagulya, Konstantin"]
[Black "Erdogdu, Mert"]
[WhiteFideId "4128931"]
[BlackFideId "6301495"]
[WhiteElo "2329"]
[BlackElo "2413"]
[Result "0-1"]
[Round "01"]
[TimeControl "180+1"]
[Date "2022.11.23"]
[WhiteClock "0:00:17"]
[BlackClock "0:01:08"]

1. d4 {[%clk 0:02:48]}  d5 {[%clk 0:02:59]} 2. Nf3 {[%clk 0:02:48]}  e6 {[%clk 0:03:00]} 3. c4 {[%clk 0:02:48]}  c5 {[%clk 0:03:00]} 4. e3 {[%clk 0:02:46]}  Nf6 {[%clk 0:03:00]} 5. Nc3 {[%clk 0:02:46]}  a6 {[%clk 0:03:00]} 6. a3 {[%clk 0:02:44]}  dxc4 {[%clk 0:02:58]} 7. Bxc4 {[%clk 0:02:44]}  b5 {[%clk 0:02:59]} 8. Be2 {[%clk 0:02:44]}  Bb7 {[%clk 0:02:59]} 9. O-O {[%clk 0:02:44]}  Nbd7 {[%clk 0:02:59]} 10. dxc5 {[%clk 0:02:44]}  Bxc5 {[%clk 0:02:59]} 11. b4 {[%clk 0:02:44]}  Be7 {[%clk 0:02:57]} 12. Bb2 {[%clk 0:02:44]}  O-O {[%clk 0:02:57]} 13. Rc1 {[%clk 0:02:40]}  Rc8 {[%clk 0:02:56]} 14. Qb3 {[%clk 0:02:40]}  Qb6 {[%clk 0:02:55]} 15. Rfd1 {[%clk 0:02:39]}  Rfd8 {[%clk 0:02:56]} 16. h3 {[%clk 0:02:36]}  Nf8 {[%clk 0:02:55]} 17. Nd4 {[%clk 0:02:17]}  Ng6 {[%clk 0:02:51]} 18. Bf3 {[%clk 0:02:08]}  Ne5 {[%clk 0:02:42]} 19. Bxb7 {[%clk 0:02:06]}  Qxb7 {[%clk 0:02:42]} 20. Nb1 {[%clk 0:01:51]}  Nc4 {[%clk 0:02:37]} 21. Nd2 {[%clk 0:01:52]}  Nxd2 {[%clk 0:01:54]} 22. Rxd2 {[%clk 0:01:51]}  Rxc1+ {[%clk 0:01:52]} 23. Bxc1 {[%clk 0:01:50]}  Ne4 {[%clk 0:01:49]} 24. Rc2 {[%clk 0:01:50]}  Bf6 {[%clk 0:01:44]} 25. Bb2 {[%clk 0:01:49]}  h6 {[%clk 0:01:38]} 26. f3 {[%clk 0:01:07]}  Nd6 {[%clk 0:01:22]} 27. Nc6 {[%clk 0:01:05]}  Rc8 {[%clk 0:01:22]} 28. Bxf6 {[%clk 0:01:05]}  Rxc6 {[%clk 0:01:22]} 29. Bd4 {[%clk 0:01:02]}  Nc4 {[%clk 0:01:20]} 30. a4 {[%clk 0:00:57]}  e5 {[%clk 0:01:19]} 31. Bc5 {[%clk 0:00:56]}  Qd7 {[%clk 0:01:16]} 32. Rc1 {[%clk 0:00:31]}  Rg6 {[%clk 0:01:08]} 33. Kf1 {[%clk 0:00:17]}  Nd2+ {[%clk 0:01:08]} 0-1


[Site "https://www.chess.com"]

[Event "Titled Tuesday Blitz November 22 Early 2022"]
[White "Ginzburg, Yakov"]
[Black "Prohorov, Olexandr"]
[WhiteFideId "4157176"]
[BlackFideId "14105578"]
[WhiteElo "2305"]
[BlackElo "1993"]
[Result "0-1"]
[Round "01"]
[TimeControl "180+1"]
[Date "2022.11.23"]
[WhiteClock "0:00:01"]
[BlackClock "0:01:02"]

1. e4 {[%clk 0:02:59]}  c5 {[%clk 0:02:59]} 2. Nf3 {[%clk 0:02:59]}  d6 {[%clk 0:02:58]} 3. c3 {[%clk 0:02:57]}  Nf6 {[%clk 0:02:57]} 4. Be2 {[%clk 0:02:57]}  b6 {[%clk 0:02:50]} 5. O-O {[%clk 0:02:55]}  Bb7 {[%clk 0:02:50]} 6. e5 {[%clk 0:02:48]}  dxe5 {[%clk 0:02:41]} 7. Nxe5 {[%clk 0:02:49]}  e6 {[%clk 0:02:40]} 8. Bb5+ {[%clk 0:02:38]}  Nbd7 {[%clk 0:02:40]} 9. d4 {[%clk 0:02:31]}  a6 {[%clk 0:02:38]} 10. Nxd7 {[%clk 0:02:20]}  Nxd7 {[%clk 0:02:37]} 11. Ba4 {[%clk 0:02:20]}  b5 {[%clk 0:02:37]} 12. Bc2 {[%clk 0:02:20]}  Be7 {[%clk 0:02:26]} 13. dxc5 {[%clk 0:02:00]}  Qc7 {[%clk 0:02:21]} 14. Qg4 {[%clk 0:01:55]}  Nf6 {[%clk 0:02:20]} 15. Qh3 {[%clk 0:01:49]}  Bxc5 {[%clk 0:02:16]} 16. Nd2 {[%clk 0:01:39]}  O-O-O {[%clk 0:02:07]} 17. a4 {[%clk 0:01:33]}  h5 {[%clk 0:02:06]} 18. axb5 {[%clk 0:01:31]}  axb5 {[%clk 0:02:07]} 19. Nb3 {[%clk 0:01:31]}  Bd6 {[%clk 0:02:02]} 20. Nd4 {[%clk 0:01:14]}  b4 {[%clk 0:01:58]} 21. Nb5 {[%clk 0:01:13]}  Qb6 {[%clk 0:01:58]} 22. Nxd6+ {[%clk 0:01:12]}  Qxd6 {[%clk 0:01:59]} 23. Bg5 {[%clk 0:00:58]}  Qe5 {[%clk 0:01:35]} 24. Qh4 {[%clk 0:00:46]}  bxc3 {[%clk 0:01:16]} 25. bxc3 {[%clk 0:00:37]}  Rd7 {[%clk 0:01:17]} 26. Rfb1 {[%clk 0:00:26]}  Ng4 {[%clk 0:01:15]} 27. Qg3 {[%clk 0:00:12]}  Qxg3 {[%clk 0:01:11]} 28. hxg3 {[%clk 0:00:12]}  f6 {[%clk 0:01:12]} 29. Bf4 {[%clk 0:00:11]}  e5 {[%clk 0:01:09]} 30. Bf5 {[%clk 0:00:11]}  exf4 {[%clk 0:01:08]} 31. Bxd7+ {[%clk 0:00:11]}  Kxd7 {[%clk 0:01:09]} 32. Rxb7+ {[%clk 0:00:11]}  Ke6 {[%clk 0:01:09]} 33. Ra6+ {[%clk 0:00:11]}  Kf5 {[%clk 0:01:09]} 34. Rxg7 {[%clk 0:00:10]}  Rd8 {[%clk 0:01:07]} 35. Ra5+ {[%clk 0:00:09]}  Ne5 {[%clk 0:01:05]} 36. gxf4 {[%clk 0:00:08]}  Kxf4 {[%clk 0:01:06]} 37. Kh2 {[%clk 0:00:03]}  Ng4+ {[%clk 0:01:04]} 38. Rxg4+ {[%clk 0:00:03]}  hxg4 {[%clk 0:01:04]} 39. Ra4+ {[%clk 0:00:03]}  Kg5 {[%clk 0:01:03]} 40. Rd4 {[%clk 0:00:03]}  Rc8 {[%clk 0:01:04]} 41. c4 {[%clk 0:00:03]}  Re8 {[%clk 0:01:02]} 42. Kg3 {[%clk 0:00:03]}  Re2 {[%clk 0:01:02]} 43. Rxg4+ {[%clk 0:00:01]}  Kf5 {[%clk 0:01:02]} 44. Rf4+ {[%clk 0:00:01]}  Ke6 {[%clk 0:01:02]} 0-1


[Site "https://www.chess.com"]

[Event "Titled Tuesday Blitz November 22 Early 2022"]
[White "Golichenko, Ilija"]
[Black "Ibarra Jerez, Jose Carlos"]
[WhiteFideId "14117223"]
[BlackFideId "2226332"]
[WhiteElo "2350"]
[BlackElo "2638"]
[Result "0-1"]
[Round "01"]
[TimeControl "180+1"]
[Date "2022.11.23"]
[WhiteClock "0:00:17"]
[BlackClock "0:00:05"]

1. d4 {[%clk 0:02:59]}  Nf6 {[%clk 0:02:58]} 2. c4 {[%clk 0:02:55]}  d6 {[%clk 0:02:43]} 3. Nc3 {[%clk 0:02:54]}  e5 {[%clk 0:02:42]} 4. Nf3 {[%clk 0:02:52]}  e4 {[%clk 0:02:39]} 5. Nd2 {[%clk 0:02:52]}  Qe7 {[%clk 0:02:38]} 6. e3 {[%clk 0:02:52]}  Bf5 {[%clk 0:02:36]} 7. h3 {[%clk 0:02:52]}  h5 {[%clk 0:02:33]} 8. Be2 {[%clk 0:02:48]}  g6 {[%clk 0:02:18]} 9. b3 {[%clk 0:02:46]}  Bg7 {[%clk 0:02:15]} 10. Bb2 {[%clk 0:02:39]}  h4 {[%clk 0:02:08]} 11. Qc2 {[%clk 0:02:34]}  Nc6 {[%clk 0:02:08]} 12. a3 {[%clk 0:02:29]}  O-O {[%clk 0:02:03]} 13. O-O-O {[%clk 0:02:28]}  Nxd4 {[%clk 0:01:59]} 14. exd4 {[%clk 0:02:23]}  e3 {[%clk 0:02:00]} 15. Bd3 {[%clk 0:02:23]}  exd2+ {[%clk 0:01:59]} 16. Qxd2 {[%clk 0:02:22]}  Bxd3 {[%clk 0:01:55]} 17. Qxd3 {[%clk 0:02:23]}  Nh5 {[%clk 0:01:51]} 18. Nd5 {[%clk 0:02:08]}  Qd8 {[%clk 0:01:45]} 19. Rhe1 {[%clk 0:02:03]}  c6 {[%clk 0:01:45]} 20. Ne7+ {[%clk 0:01:51]}  Kh7 {[%clk 0:01:44]} 21. d5 {[%clk 0:01:52]}  Re8 {[%clk 0:01:35]} 22. Bxg7 {[%clk 0:01:47]}  Nxg7 {[%clk 0:01:23]} 23. dxc6 {[%clk 0:01:01]}  Rxe7 {[%clk 0:01:17]} 24. Rxe7 {[%clk 0:01:01]}  Qxe7 {[%clk 0:01:17]} 25. Qxd6 {[%clk 0:01:01]}  Qxd6 {[%clk 0:00:49]} 26. Rxd6 {[%clk 0:01:02]}  bxc6 {[%clk 0:00:49]} 27. Rxc6 {[%clk 0:01:01]}  Ne6 {[%clk 0:00:48]} 28. g3 {[%clk 0:00:55]}  Kg7 {[%clk 0:00:44]} 29. Kd2 {[%clk 0:00:45]}  Nd4 {[%clk 0:00:39]} 30. Ra6 {[%clk 0:00:40]}  Nxb3+ {[%clk 0:00:38]} 31. Kc3 {[%clk 0:00:40]}  Nc5 {[%clk 0:00:39]} 32. Ra5 {[%clk 0:00:35]}  hxg3 {[%clk 0:00:37]} 33. fxg3 {[%clk 0:00:34]}  Ne4+ {[%clk 0:00:37]} 34. Kd4 {[%clk 0:00:34]}  Nxg3 {[%clk 0:00:37]} 35. c5 {[%clk 0:00:35]}  Nf5+ {[%clk 0:00:32]} 36. Kd5 {[%clk 0:00:34]}  a6 {[%clk 0:00:23]} 37. Kc6 {[%clk 0:00:33]}  Rh8 {[%clk 0:00:19]} 38. Kd7 {[%clk 0:00:29]}  Rxh3 {[%clk 0:00:19]} 39. c6 {[%clk 0:00:30]}  Rd3+ {[%clk 0:00:20]} 40. Ke8 {[%clk 0:00:28]}  Nd6+ {[%clk 0:00:14]} 41. Ke7 {[%clk 0:00:26]}  Nc8+ {[%clk 0:00:14]} 42. Ke8 {[%clk 0:00:26]}  f5 {[%clk 0:00:11]} 43. c7 {[%clk 0:00:26]}  f4 {[%clk 0:00:11]} 44. Rxa6 {[%clk 0:00:24]}  f3 {[%clk 0:00:12]} 45. Ra8 {[%clk 0:00:22]}  Nd6+ {[%clk 0:00:11]} 46. Ke7 {[%clk 0:00:23]}  f2 {[%clk 0:00:12]} 47. Rf8 {[%clk 0:00:23]}  Rd2 {[%clk 0:00:08]} 48. Rf6 {[%clk 0:00:17]}  Nc8+ {[%clk 0:00:06]} 49. Ke6 {[%clk 0:00:17]}  Rd6+ {[%clk 0:00:05]} 0-1


[Site "https://www.chess.com"]

[Event "Titled Tuesday Blitz November 22 Early 2022"]
[White "Goltsev, Dmitry"]
[Black "Ansh M Shah"]
[WhiteFideId "24176710"]
[BlackFideId "25033379"]
[WhiteElo "2289"]
[BlackElo "2084"]
[Result "1-0"]
[Round "01"]
[TimeControl "180+1"]
[Date "2022.11.23"]
[WhiteClock "0:01:01"]
[BlackClock "0:00:01"]

1. e4 {[%clk 0:02:58]}  c6 {[%clk 0:02:59]} 2. d4 {[%clk 0:02:56]}  d5 {[%clk 0:03:00]} 3. Nc3 {[%clk 0:02:57]}  dxe4 {[%clk 0:03:00]} 4. Nxe4 {[%clk 0:02:56]}  Nf6 {[%clk 0:03:01]} 5. Nxf6+ {[%clk 0:02:54]}  exf6 {[%clk 0:03:02]} 6. c3 {[%clk 0:02:52]}  Bd6 {[%clk 0:03:01]} 7. Nf3 {[%clk 0:02:52]}  O-O {[%clk 0:03:01]} 8. Bd3 {[%clk 0:02:50]}  Re8+ {[%clk 0:03:01]} 9. Be3 {[%clk 0:02:08]}  Bf4 {[%clk 0:03:01]} 10. Kd2 {[%clk 0:02:08]}  Bxe3+ {[%clk 0:02:58]} 11. fxe3 {[%clk 0:02:09]}  Qe7 {[%clk 0:02:37]} 12. e4 {[%clk 0:02:02]}  Nd7 {[%clk 0:02:08]} 13. Qc2 {[%clk 0:01:57]}  c5 {[%clk 0:01:56]} 14. d5 {[%clk 0:01:46]}  Ne5 {[%clk 0:01:44]} 15. Rae1 {[%clk 0:01:42]}  a6 {[%clk 0:01:29]} 16. Kc1 {[%clk 0:01:33]}  b5 {[%clk 0:01:22]} 17. h3 {[%clk 0:01:31]}  Bd7 {[%clk 0:00:59]} 18. Rhf1 {[%clk 0:01:25]}  c4 {[%clk 0:00:55]} 19. Be2 {[%clk 0:01:21]}  Qc5 {[%clk 0:00:31]} 20. Nd4 {[%clk 0:01:18]}  b4 {[%clk 0:00:20]} 21. g4 {[%clk 0:01:17]}  h6 {[%clk 0:00:19]} 22. Rg1 {[%clk 0:01:15]}  Reb8 {[%clk 0:00:17]} 23. h4 {[%clk 0:01:13]}  a5 {[%clk 0:00:10]} 24. g5 {[%clk 0:01:13]}  hxg5 {[%clk 0:00:05]} 25. hxg5 {[%clk 0:01:14]}  f5 {[%clk 0:00:06]} 26. exf5 {[%clk 0:01:12]}  Qxd5 {[%clk 0:00:06]} 27. f6 {[%clk 0:01:06]}  g6 {[%clk 0:00:05]} 28. Rh1 {[%clk 0:01:07]}  Nd3+ {[%clk 0:00:02]} 29. Bxd3 {[%clk 0:01:06]}  cxd3 {[%clk 0:00:03]} 30. Rh8+ {[%clk 0:01:02]}  Kxh8 {[%clk 0:00:02]} 31. Qh2+ {[%clk 0:01:01]}  Kg8 {[%clk 0:00:03]} 32. Qh6 {[%clk 0:01:02]}  Qxg5+ {[%clk 0:00:01]} 33. Qxg5 {[%clk 0:01:02]}  bxc3 {[%clk 0:00:01]} 34. bxc3 {[%clk 0:01:03]}  d2+ {[%clk 0:00:01]} 35. Qxd2 {[%clk 0:01:01]} 1-0


[Site "https://www.chess.com"]

[Event "Titled Tuesday Blitz November 22 Early 2022"]
[White "Gonzalez Vega, Alejandro"]
[Black "Djokic, Mihailo"]
[WhiteFideId "3510042"]
[BlackFideId "976440"]
[WhiteElo "2290"]
[BlackElo "2315"]
[Result "0-1"]
[Round "01"]
[TimeControl "180+1"]
[Date "2022.11.23"]
[WhiteClock "0:00:49"]
[BlackClock "0:01:18"]

1. e4 {[%clk 0:02:55]}  c5 {[%clk 0:03:00]} 2. Nf3 {[%clk 0:02:52]}  d6 {[%clk 0:02:59]} 3. d4 {[%clk 0:02:51]}  cxd4 {[%clk 0:03:00]} 4. c3 {[%clk 0:02:50]}  Nf6 {[%clk 0:02:59]} 5. cxd4 {[%clk 0:02:49]}  Nxe4 {[%clk 0:02:58]} 6. d5 {[%clk 0:02:49]}  e6 {[%clk 0:02:57]} 7. Qa4+ {[%clk 0:02:47]}  Nd7 {[%clk 0:02:56]} 8. Qxe4 {[%clk 0:02:47]}  Nf6 {[%clk 0:02:57]} 9. Qh4 {[%clk 0:02:43]}  Qa5+ {[%clk 0:02:53]} 10. Bd2 {[%clk 0:02:40]}  Qxd5 {[%clk 0:02:52]} 11. Bc4 {[%clk 0:02:38]}  Qf5 {[%clk 0:02:41]} 12. O-O {[%clk 0:02:34]}  Bd7 {[%clk 0:02:40]} 13. Nc3 {[%clk 0:02:34]}  Rc8 {[%clk 0:02:40]} 14. Bb3 {[%clk 0:02:30]}  Be7 {[%clk 0:02:39]} 15. Nd4 {[%clk 0:02:29]}  Qc5 {[%clk 0:02:31]} 16. Be3 {[%clk 0:02:25]}  Qa5 {[%clk 0:02:29]} 17. Qg3 {[%clk 0:02:16]}  O-O {[%clk 0:02:27]} 18. Rad1 {[%clk 0:02:02]}  Rfd8 {[%clk 0:02:23]} 19. Rfe1 {[%clk 0:01:42]}  b5 {[%clk 0:02:20]} 20. Bd2 {[%clk 0:01:29]}  Qb6 {[%clk 0:02:08]} 21. Bc1 {[%clk 0:01:25]}  a5 {[%clk 0:01:57]} 22. Nf5 {[%clk 0:01:24]}  Bf8 {[%clk 0:01:46]} 23. Nxd6 {[%clk 0:01:20]}  Bxd6 {[%clk 0:01:44]} 24. Rxd6 {[%clk 0:01:19]}  Qc7 {[%clk 0:01:41]} 25. Red1 {[%clk 0:01:18]}  b4 {[%clk 0:01:39]} 26. Ne2 {[%clk 0:01:09]}  Ne4 {[%clk 0:01:37]} 27. Qd3 {[%clk 0:00:58]}  Nxd6 {[%clk 0:01:34]} 28. Qxd6 {[%clk 0:00:53]}  a4 {[%clk 0:01:19]} 29. Qc6 {[%clk 0:00:49]}  Bxc6 {[%clk 0:01:18]} 0-1


[Site "https://www.chess.com"]